Cogmind - Beta 13 @@@ ROGUE MODE // 2024.02.27 @ 21:02:00 Player: Scared Dad Result: Destroyed by Z7-PIN(R) with Subdweller Laser Performance ------------- Evolutions (0) 0 Regions Visited (3) 600 Robots Destroyed (21) 105 Value Destroyed (566) 566 Prototype IDs (1) 20 Alien Tech Used (0) 0 Bonus (35) 35 TOTAL SCORE: 1326 Bonus ------- Follower Combat Kills 35 Cogmind --------- Core Integrity 0/250 Matter 172/300 Energy 83/250 System Corruption 0% Temperature Cool (6) Movement Walking (190) Ox1 Location -10/Subcaves Parts ------- > --- POWER (1) -------- Ion Engine > --- PROPULSION (2) --- Aluminum Leg > --- UTILITY (2) ------ Small Storage Unit Signal Interpreter > --- WEAPON (2) ------- Shotgun Shotgun > --- INVENTORY (8) ---- Improved Flight Unit Improved Flight Unit Improved Flight Unit Experimental Sensor Array Signal Generator Peak State ------------ > --- POWER ------------ Light Nuclear Core > --- PROPULSION ------- Improved Flight Unit Improved Flight Unit > --- UTILITY ---------- Small Storage Unit Signal Interpreter > --- WEAPON ----------- Shotgun Shotgun > --- INVENTORY -------- Light Ion Engine Aluminum Leg Aluminum Leg Wheel Improved Heat Sink Shotgun Shotgun [Rating: 16] Favorites ----------- Power Light Nuclear Core Engine Ion Engine Power Core Light Nuclear Core Propulsion Aluminum Leg Leg Aluminum Leg Wheel Wheel Flight Unit Improved Flight Unit Utility Small Storage Unit Storage Small Storage Unit Processor Signal Interpreter Weapon Shotgun Energy Gun Small Laser Ballistic Gun Shotgun Build | -11 -10 -10 -10 ------- Run | Yrd Mat Min Sub Slots Evolved . | . . . . Power . | . . . . Propulsion . | . . . . Utility . | . . . . Weapon . | . . . . Parts Attached 25 | 6 10 6 3 Power 6 | 1 2 2 1 Engine 3 | 1 1 . 1 Core 3 | . 1 2 . Reactor . | . . . . Propulsion 11 | 2 5 3 1 Treads . | . . . . Leg 7 | . 3 3 1 Wheel 2 | 2 . . . Hover . | . . . . Flight 2 | . 2 . . Utility 2 | 1 1 . . Device . | . . . . Storage 1 | 1 . . . Processor 1 | . 1 . . Hackware . | . . . . Protection . | . . . . Artifact . | . . . . Weapon 6 | 2 2 1 1 Energy Gun 1 | 1 . . . Energy Cannon . | . . . . Ballistic Gun 5 | 1 2 1 1 Ballistic Cannon . | . . . . Launcher . | . . . . Special Weapon . | . . . . Impact Weapon . | . . . . Slashing Weapon . | . . . . Piercing Weapon . | . . . . Special Melee Weapon . | . . . . Unidentified Prototypes 1 | . 1 . . Parts Lost 5 | . . 1 4 Power 2 | . . 1 1 Propulsion 2 | . . . 2 Utility . | . . . . Weapon 1 | . . . 1 Highest Loss Streak 4 | . . 1 4 To Critical Strikes . | . . . . Average Slot Usage (%) 99 | . 99 99 92 Engine 3 | . 12 . . Core 10 | . 1 13 9 Leg 24 | . 13 28 25 Wheel 3 | . 14 . . Storage 14 | . 14 14 14 Processor 13 | . 13 14 14 Energy Gun 1 | . 7 . . Ballistic Gun 26 | . 21 28 28 Naked Turns . | . . . . Heaviest Build 16 | 13 16 16 16 Greatest Support 20 | 20 20 20 20 Greatest Overweight (x) . | . . . . Average Overweight (x) . | . . . . Largest Inventory Capacity 8 | 8 8 8 8 Average Capacity 7 | 6 8 8 8 Most Carried 8 | 7 8 8 8 Average Carried 7 | 4 6 7 7 Final Capacity 8 | 8 8 8 8 Final Carried 8 | 6 8 8 5 Class Distribution -------------------- 100% | Mutant Dominant Class ---------------- Mutant | -10/Materials Mutant | -10/Mines Mutant | -10/Subcaves Resources | -11 -10 -10 -10 ----------- Run | Yrd Mat Min Sub Matter Collected 673 | 250 113 310 . Remotely . | . . . . Salvage Created 594 | . 228 341 25 Parts 39 | . 15 22 2 Haulers Intercepted . | . . . . Recyclers Shooed 1 | . . 1 . Parts Field Recycled . | . . . . Retrieved Matter . | . . . . Parts Self-Destructed 6 | . . . 6 Prevented . | . . . . Kills | -11 -10 -10 -10 ------- Run | Yrd Mat Min Sub Combat Hostiles Destroyed 21 | . 7 13 1 Guns 21 | . 7 13 1 Classes Destroyed 3 | . 2 . 1 Swarmer 9 | . 3 6 . Grunt 11 | . 4 7 . Subdweller 1 | . . . 1 Best Kill Streak 3 | . 2 3 1 Combat Bots Only 3 | . 2 3 1 Max Kills in Single Turn 2 | . 1 2 1 Gunslinging 1 | . . 1 . Exploded . | . . . . Melee . | . . . . Uniques/NPCs Destroyed . | . . . . Combat | -11 -10 -10 -10 -------- Run | Yrd Mat Min Sub Hostile Shots Fired 102 | . 33 37 32 Missed 17 | . 8 4 5 Damage Taken 1224 | . 300 373 551 Core 254 | . 47 40 167 Absorbed by Shields . | . . . . Core Remaining (%) 100 | 100 . . . Volleys Fired 57 | . 24 22 11 Largest 2 | . 2 2 2 Hottest 60 | . 60 46 46 Shots Fired 114 | . 48 44 22 Gun 114 | . 48 44 22 Cannon . | . . . . Launcher . | . . . . Special . | . . . . Kinetic 98 | . 32 44 22 Thermal 16 | . 16 . . Explosive . | . . . . Electromagnetic . | . . . . Robot Hit Streak 14 | . 14 5 11 Robot Miss Streak 4 | . 3 4 2 Penetration Max . | . . . . Secondary Targets 3 | . . 3 . Max Gunslinging Chain 1 | . . 1 . Shots Hit Robots 81 | . 30 31 20 Core Hits 41 | . 12 22 7 Critical Kills . | . . . . Critical Parts Destroyed . | . . . . Critical Strikes . | . . . . Melee Attacks . | . . . . Impact . | . . . . Slashing . | . . . . Piercing . | . . . . Sneak Attacks . | . . . . Combat Hostiles . | . . . . Follow-up Attacks . | . . . . Damage Inflicted 1372 | . 456 490 426 Guns 1372 | . 456 490 426 Cannons . | . . . . Explosions . | . . . . Melee . | . . . . Ramming . | . . . . Kinetic 1282 | . 366 490 426 Thermal 90 | . 90 . . Explosive . | . . . . Electromagnetic . | . . . . Impact . | . . . . Slashing . | . . . . Piercing . | . . . . Highest Corruption . | . . . . Average Corruption . | . . . . Corruption Purged . | . . . . Corruption Blocked . | . . . . Overload Shots . | . . . . Overflow Damage . | . . . . Projectiles . | . . . . Explosions . | . . . . Melee . | . . . . Knockbacks . | . . . . Impact . | . . . . Kinetic . | . . . . Secondary . | . . . . Self-Inflicted Damage . | . . . . Shots . | . . . . Rammed . | . . . . Targets Rammed . | . . . . Kicked . | . . . . Crushed . | . . . . Highest Temperature 21 | . 18 21 . Average Temperature 9 | . 8 10 . Received Heat Transfer 429 | . 111 156 162 Siege Activations . | . . . . Robots Corrupted . | . . . . Combat Hostiles . | . . . . Parts Fried . | . . . . Impact Corruptions . | . . . . Robots Melted . | . . . . Combat Hostiles . | . . . . Parts Melted 2 | . . 2 . Heat Transferred 200 | . 200 . . Parts Sabotaged . | . . . . Parts Stolen . | . . . . Parts Stripped . | . . . . Power Chain Reactions . | . . . . Alert | -11 -10 -10 -10 ------- Run | Yrd Mat Min Sub Peak Influence 204 | . 204 193 . Initial 13 | . . 13 . Average 85 | . 108 81 . Maximum Alert Level 1 | . 1 . . Low Security (%) 94 | 100 80 100 . Level 1 5 | . 19 . . Level 2 . | . . . . Level 3 . | . . . . Level 4 . | . . . . Level 5 . | . . . . High Security . | . . . . Max Security . | . . . . Squads Dispatched 3 | . 2 1 . Investigation . | . . . . Extermination . | . . . . Reinforcement 2 | . 2 . . Assault 1 | . . 1 . Garrison . | . . . . Intercept . | . . . . Searches Triggered . | . . . . Construction Impeded . | . . . . Haulers Reinforced . | . . . . Active Scanning Responses . | . . . . Cargo Convoy Interrupts . | . . . . Stealth | -11 -10 -10 -10 --------- Run | Yrd Mat Min Sub Distress Signals . | . . . . Communications Jammed . | . . . . Distress Signals . | . . . . Times Spotted 30 | . 13 14 3 Peak Tracking Total 5 | . 5 4 3 Tactical Retreats 2 | . 2 . . Traps | -11 -10 -10 -10 ------- Run | Yrd Mat Min Sub Traps Triggered 2 | . 2 . . Indirectly . | . . . . Trap Hack Attempts . | . . . . Triggered . | . . . . Disarmed . | . . . . Reprogrammed . | . . . . Reused . | . . . . Traps Extracted . | . . . . Installed . | . . . . Triggered . | . . . . Machines | -11 -10 -10 -10 ---------- Run | Yrd Mat Min Sub Machines Disabled 1 | . . 1 . Max in Single Turn . | . . . . Machines Repaired . | . . . . Machines Dismantled . | . . . . Machines Sabotaged . | . . . . Overloaded Fab Kills . | . . . . Hacking | -11 -10 -10 -10 --------- Run | Yrd Mat Min Sub Machines Accessed 3 | . 3 . . Terminals 3 | . 3 . . Fabricators . | . . . . Repair Stations . | . . . . Recycling Units . | . . . . Scanalyzers . | . . . . Garrison Access . | . . . . Total Hacks 6 | . 6 . . Successful 2 | . 2 . . Failed 4 | . 4 . . Catastrophic 1 | . 1 . . Database Lockouts . | . . . . Manual . | . . . . Terminals 6 | . 6 . . Fabricators . | . . . . Repair Stations . | . . . . Recycling Units . | . . . . Scanalyzers . | . . . . Garrison Access . | . . . . Terminal Hacks 2 | . 2 . . Robot Analysis 1 | . 1 . . Alert Level 1 | . 1 . . Fabricator Hacks . | . . . . Repair Station Hacks . | . . . . Recycling Unit Hacks . | . . . . Scanalyzer . | . . . . Garrison Access Hacks . | . . . . Unauthorized Hacks . | . . . . Terminals . | . . . . Fabricators . | . . . . Repair Stations . | . . . . Recycling Units . | . . . . Scanalyzers . | . . . . Garrison Access . | . . . . Data Cores Recovered . | . . . . Used . | . . . . Hacking Detections 2 | . 2 . . Full Trace Events 1 | . 1 . . Feedback Events . | . . . . Feedback Blocked . | . . . . Robot Schematics Acquired . | . . . . Robots Built . | . . . . Authchips . | . . . . Time . | . . . . Total Robot Build Rating . | . . . . Part Schematics Acquired . | . . . . Parts Built . | . . . . Authchips . | . . . . Time . | . . . . Total Part Build Rating . | . . . . Parts Repaired . | . . . . Time . | . . . . Parts Recycled . | . . . . Recycled Matter . | . . . . Retrieved Matter . | . . . . Retrieved Components . | . . . . Parts Scanalyzed . | . . . . Part Schematics Acquired . | . . . . Parts Damaged . | . . . . Bothacking | -11 -10 -10 -10 ------------ Run | Yrd Mat Min Sub Used RIF Installer . | . . . . Robots Hacked . | . . . . Non-combat . | . . . . Combat . | . . . . Robot Hacks Applied . | . . . . Relay Couplers Released . | . . . . Fabnet Peak Effective % . | . . . . Robots Rewired . | . . . . Allies Hacked . | . . . . Hacks Repelled . | . . . . Allies | -11 -10 -10 -10 -------- Run | Yrd Mat Min Sub Total Allies 1 | . . 1 . Largest Group 1 | . . 1 1 Highest-Rated Group 31 | . . 31 31 Highest-Rated Ally 31 | . . 31 31 Total Orders . | . . . . Ally Attacks 12 | . . 10 2 Total Damage 167 | . . 127 40 Kills 1 | . . 1 . Allies Corrupted . | . . . . Allies Melted . | . . . . Intel | -11 -10 -10 -10 ------- Run | Yrd Mat Min Sub Robot Analysis Total 1 | . 1 . . Derelict Logs Recovered 1 | . . 1 . Drone Launches . | . . . . Drone Recoveries . | . . . . Exploration | -11 -10 -10 -10 ------------- Run | Yrd Mat Min Sub Turns Passed 1717 | 59 428 1166 64 Spaces Moved 893 | 54 277 541 21 Core 7 | 7 . . . Treads . | . . . . Legs 695 | . 133 541 21 Wheels 191 | 47 144 . . Hover . | . . . . Flight . | . . . . Fastest Speed 50 | 50 80 120 120 Average Speed 110 | 76 99 120 120 Slowest Speed 120 | 80 120 120 120 Overloaded Moves . | . . . . Propulsion Burnouts . | . . . . Robots Hopped . | . . . . Cave-ins Triggered . | . . . . Exploration Rate (%) 35 | 3 46 90 3 Regions Visited 3 Branch Regions 2 Pre-discovered Areas 1 | . . 1 . Known Exits Taken 2 | . 1 1 . Unknown Exits Taken 1 | 1 . . . Scrap Searched 1 | . . 1 . Spaces Dug . | . . . . Terrain Destroyed . | . . . . Melee . | . . . . Projectile . | . . . . AOE . | . . . . Terrain Rammed . | . . . . Walls Destroyed . | . . . . Machines Disabled . | . . . . Actions | -11 -10 -10 -10 --------- Run | Yrd Mat Min Sub Total 1509 | 71 382 1018 38 Wait 483 | . 51 429 3 Move 890 | 53 276 540 21 Hop . | . . . . Pick Up 35 | 12 12 11 . Fast Attach . | . . . . Attach 12 | 6 2 1 3 Detach . | . . . . Swap 13 | . 8 5 . Drop 19 | . 9 10 . Fire 57 | . 24 22 11 Melee . | . . . . Ram . | . . . . Kick . | . . . . Crush . | . . . . Escape Stasis . | . . . . Rewire . | . . . . Trap . | . . . . Miscellaneous . | . . . . Route ------- -11/Scrapyard -10/Materials -10/Mines (discovered 4 exits: *Mat x2 / *Exi / *Sub) -10/Subcaves History --------- Turn | Location | Event 12 | -11/Scrapyard | Discovered new exit (range 14) 60 | -11/Scrapyard | Entered Materials 313 | -10/Materials | Build established: Mutant 410 | -10/Materials | Discovered new exit (range 8) 422 | -10/Materials | Identified exit to Mines 488 | -10/Materials | Entered Mines 591 | -10/Mines | Received a Rocket Launcher from a helpful Derelict 641 | -10/Mines | Found a damaged Exp. Sensor Array with a note attached 644 | -10/Mines | Found Prototype Device 857 | -10/Mines | Deemed a non-threat by the Exiles lab entrance 859 | -10/Mines | Discovered new exit (range 5) 862 | -10/Mines | Identified exit to Exiles 887 | -10/Mines | Discovered new exit (range 9) 896 | -10/Mines | Met a Derelict testing a Signal Generator 897 | -10/Mines | Identified exit to Materials 904 | -10/Mines | Found Signal Generator 1117 | -10/Mines | Discovered exit to Materials (range 6) 1652 | -10/Mines | Discovered new exit (range 3) 1653 | -10/Mines | Identified exit to Subcaves 1654 | -10/Mines | Entered Subcaves 1654 | -10/Subcaves | Accompanied by 1 ally 1701 | -10/Subcaves | Core integrity fell below 50% 1711 | -10/Subcaves | Core integrity fell below 20% 1718 | -10/Subcaves | Destroyed by Z7-PIN(R) with Subdweller Laser Last Messages --------------- 01571_ U-05 Engineer lays Concrete. 01576_ U-05 Engineer builds a Wall. 01589_ U-05 Engineer lays Concrete. 01620_ T-07 Excavator is excavating. 01630_ U-05 Engineer lays Concrete. 01652_ EXIT=FOUND 01653_ EXIT=IDENTIFIED: SUBCAVES LOCATION=SUBCAVES AMBIENT_HEAT=-10 GOAL=ESCAPE 01683_ 8E-P08(g) suffers critical hit (Destroy). 01683_ 8E-P08(g) destroyed. 01689_ WX-3R7(R) destroyed. 01691_ Z7-PIN(R) affixes Scrap Shield Fragment to Scrap Shield. 01696_ Lgt. Nuclear Core destroyed. 01699_ Z7-PIN(R) affixes Scrap Shield Fragment to Scrap Shield. 01702_ Aluminum Leg destroyed. 01714_ Shotgun destroyed. Map ----- +----------------------------------------------------+ | ?????????????????????????????????????????????????? | | ?????????????????????????????????????????????????? | | ?????????????????????????????????????????????????? | | ?????????????????????????????????????????????????? | | ?????????????????????????????????????????????????? | | ?????????????????????????????????????????????????? | | ?????????????????????????????????????????????????? | | ?????????????????????????????????????????????????? | | ?????????????????????????????????????????????????? | | ?????????????????????????????????????????????????? | | ?????????????????????????????????????????????????? | | ?????????????????????????????????????????????????? | | ???????????????????#### ?????????????????????????? | | ???????????????????# ?????????????????????????? | | ???????????????????? ?????????????????????????? | | ???????????????????? % ?????????????????????????? | | ????????????????????? ?????????????????????????? | | ????????????????????? % ?????????????????????????? | | ?????????????????????# ?????????????????????????? | | ?????????????????????# ##?????????#?????????????? | | ?????????????????????# #??????? #?????????????? | | ?????????????????????? ##????? #??????????????? | | ??????????????????????? R###? #???????????????? | | ?????????????????????###%!# # ##??????????????? | | ????????????????????## #R* #??????????????? | | ?????######????????## %@ #??????????????? | | ????## ##?###?### ## # #??????????????? | | ????# ### ### # #??????##??????????????? | | ????## #??????????????????????? | | ?????# # # ## #??????????????????????? | | ?????# ################??????????????????????? | | ?????# # #?????????????????????????????????????? | | ?????### #?????????????????????????????????????? | | ???????# #?????????????????????????????????????? | | ???????# ?????????????????????????????????????? | | ???????## ????????????????????????????????????? | | ????????# #???????????????????????????????????? | | ???????? ???????????????????????????????????? | | ???????? ??????????????????????????????????? | | ???????? ##?????????????????????????????????? | | ??????? ##??????????????????????????????????? | | ??????? #####???????????????????????????????????? | | ???????##????????????????????????????????????????? | | ?????????????????????????????????????????????????? | | ?????????????????????????????????????????????????? | | ?????????????????????????????????????????????????? | | ?????????????????????????????????????????????????? | | ?????????????????????????????????????????????????? | | ?????????????????????????????????????????????????? | | ?????????????????????????????????????????????????? | +----------------------------------------------------+ Best States ------------- Heat Dissipation 25 Energy Generation 14 Energy Capacity 250 Matter Stores 300 Matter Capacity 300 Sight Range 16 Terrain Scan Density 10 Evasion (%) 55 Item Schematics ----------------- None Robot Schematics ------------------ None Fabricated ------------ Nothing Alien Tech Used ----------------- None Achievements -------------- None Challenges ------------ None Game ------ Seed PhaseVariableFlightbrick Manual? 0 Play Time 00:10:09 Cumulative 83.0 hours Start 2024.02.27 @ 20:52:30 End 2024.02.27 @ 21:02:00 Sessions 1 Manual Loads 0 Difficulty Rogue Special Mode None Game No. 100 Rogue 100 Adventurer 0 Explorer 0 Win Type - Total 0 Types 0/0/0/0/0/0/0/0/0 Lore% 44 Gallery% 48 Achievement% 40 Wizard Run 0 Options --------- Layout 2 ASCII 0 Keyboard 0 Movement Numpad Keybinds 0 Fullscreen 1 Font 24/Smallcaps Map View 50x44 Zoom Use 0% Tactical HUD 1 Map Filters NONE Filters NONE Steam 1 RUN: c5380d6f-5400-4b7e-91fc-2aaad69365ef